[Event "Kwalificatie NJK A Groningen"]
[Site "Hoogkerk, Netherlands"]
[Date "2023.02.18"]
[Round "3.10"]
[White "Jovanovic, Luka"]
[Black "Aarts, Joaquin"]
[Result "1/2-1/2"]
[TimeControl "55 min. + 10 sec./zet"]
[WhiteElo "1593"]
[BlackElo "1804"]

1. d4 {[%clk 00:55:07]} {[%emt 00:00:12]} Nf6 {[%emt 00:00:46]} 2. c4 {[%clk
00:54:35]} e6 {[%clk 00:55:23]} {[%emt 00:00:04]} 3. Nf3 {[%clk 00:54:28]}
{[%emt 00:00:17]} d5 {[%clk 00:55:29]} {[%emt 00:00:04]} 4. cxd5 {[%clk
00:54:29]} {[%emt 00:00:09]} exd5 {[%clk 00:55:33]} {[%emt 00:00:06]} 5. Nc3
{[%clk 00:54:17]} {[%emt 00:00:21]} c6 {[%clk 00:55:26]} {[%emt 00:00:18]} 6.
Bg5 {[%clk 00:54:21]} {[%emt 00:00:07]} Be7 {[%clk 00:52:57]} {[%emt 00:02:39]}
7. e3 {[%clk 00:54:20]} {[%emt 00:00:10]} Bf5 {[%clk 00:53:02]} {[%emt
00:00:05]} 8. Bd3 {[%clk 00:53:10]} {[%emt 00:01:17]} Bxd3 {[%clk 00:53:03]}
{[%emt 00:00:12]} 9. Qxd3 {[%clk 00:53:10]} {[%emt 00:00:10]} Nbd7 {[%clk
00:51:05]} {[%emt 00:02:08]} 10. O-O {[%clk 00:52:47]} {[%emt 00:00:32]} h6
{[%clk 00:50:30]} {[%emt 00:00:46]} 11. Bh4 {[%clk 00:51:36]} {[%emt 00:01:21]}
O-O {[%clk 00:46:40]} {[%emt 00:04:00]} 12. Rac1 {[%clk 00:51:12]} {[%emt
00:00:34]} Ne4 {[%clk 00:45:33]} {[%emt 00:01:17]} 13. Nxe4 {[%clk 00:50:04]}
{[%emt 00:01:18]} Bxh4 {[%clk 00:45:31]} {[%emt 00:00:12]} 14. Nxh4 {[%clk
00:49:40]} {[%emt 00:00:34]} Qxh4 {[%clk 00:45:26]} {[%emt 00:00:15]} 15. Nc5
{[%clk 00:47:48]} {[%emt 00:02:02]} Nxc5 {[%clk 00:45:20]} {[%emt 00:00:16]} 16.
Rxc5 {[%clk 00:47:35]} {[%emt 00:00:23]} f5 {[%clk 00:39:49]} {[%emt 00:05:42]}
17. g3 {[%clk 00:38:12]} {[%emt 00:09:32]} Qf6 {[%clk 00:35:43]} {[%emt
00:04:16]} 18. Rfc1 {[%clk 00:36:26]} {[%emt 00:01:56]} g5 {[%clk 00:35:40]}
{[%emt 00:00:13]} 19. b4 {[%clk 00:35:47]} {[%emt 00:00:49]} a6 {[%clk
00:34:26]} {[%emt 00:01:25]} 20. a4 {[%clk 00:34:45]} {[%emt 00:01:11]} f4
{[%clk 00:33:01]} {[%emt 00:01:35]} 21. exf4 {[%clk 00:34:05]} {[%emt
00:00:51]} gxf4 {[%clk 00:32:54]} {[%emt 00:00:16]} 22. b5 {[%clk 00:30:23]}
{[%emt 00:03:52]} axb5 {[%clk 00:32:18]} {[%emt 00:00:46]} 23. axb5 {[%clk
00:30:06]} {[%emt 00:00:27]} fxg3 {[%clk 00:32:20]} {[%emt 00:00:07]} 24. fxg3
{[%clk 00:28:52]} {[%emt 00:01:24]} Ra2 {[%clk 00:16:15]} {[%emt 00:16:16]} 25.
Rf1 {[%clk 00:24:44]} {[%emt 00:04:17]} 1/2-1/2

[Event "Kwalificatie NJK A Groningen"]
[Site "Hoogkerk, Netherlands"]
[Date "2023.02.18"]
[Round "3.11"]
[White "Goudriaan, Rafael"]
[Black "Pijls, Coun"]
[Result "1-0"]
[TimeControl "55 min. + 10 sec./zet"]
[WhiteElo "1882"]
[BlackElo "1651"]

1. e4 {[%clk 00:54:31]} {[%emt 00:00:47]} e5 {[%clk 00:54:43]} {[%emt
00:00:38]} 2. Nf3 {[%clk 00:54:37]} {[%emt 00:00:05]} Nf6 {[%clk 00:54:46]}
{[%emt 00:00:07]} 3. d4 {[%clk 00:54:44]} {[%emt 00:00:03]} Nxe4 {[%clk
00:54:50]} {[%emt 00:00:06]} 4. Bd3 {[%clk 00:54:51]} {[%emt 00:00:03]} Nc6
{[%clk 00:54:40]} {[%emt 00:00:20]} 5. Nxe5 {[%clk 00:41:48]} {[%emt 00:13:13]}
Nf6 {[%clk 00:50:09]} {[%emt 00:04:41]} 6. Nf3 {[%clk 00:37:29]} {[%emt
00:04:29]} d5 {[%clk 00:48:07]} {[%emt 00:02:12]} 7. O-O {[%clk 00:37:35]}
{[%emt 00:00:04]} Be7 {[%clk 00:48:09]} {[%emt 00:00:09]} 8. c3 {[%clk
00:37:27]} {[%emt 00:00:18]} O-O {[%clk 00:47:57]} {[%emt 00:00:17]} 9. Qc2
{[%clk 00:37:34]} {[%emt 00:00:08]} h6 {[%clk 00:47:30]} {[%emt 00:00:37]} 10.
h3 {[%clk 00:37:33]} {[%emt 00:00:10]} Bd6 {[%clk 00:47:03]} {[%emt 00:00:38]}
11. Be3 {[%clk 00:32:17]} {[%emt 00:05:26]} Re8 {[%clk 00:45:58]} {[%emt
00:01:16]} 12. Nbd2 {[%clk 00:32:13]} {[%emt 00:00:12]} Be6 {[%clk 00:45:36]}
{[%emt 00:00:34]} 13. b4 {[%clk 00:29:54]} {[%emt 00:02:28]} a6 {[%clk
00:44:27]} {[%emt 00:01:21]} 14. Nb3 {[%clk 00:29:55]} {[%emt 00:00:08]} Nh5
{[%clk 00:38:16]} {[%emt 00:06:20]} 15. Qd2 {[%clk 00:27:13]} {[%emt 00:02:53]}
Qf6 {[%clk 00:36:45]} {[%emt 00:01:41]} 16. Nc5 {[%clk 00:24:45]} {[%emt
00:02:37]} b6 {[%clk 00:26:31]} {[%emt 00:10:24]} 17. Nxe6 {[%clk 00:23:17]}
{[%emt 00:01:38]} fxe6 {[%clk 00:26:16]} {[%emt 00:00:24]} 18. b5 {[%clk
00:22:28]} {[%emt 00:00:59]} Na5 {[%clk 00:24:35]} {[%emt 00:01:50]} 19. bxa6
{[%clk 00:21:44]} {[%emt 00:00:54]} c5 {[%clk 00:23:42]} {[%emt 00:01:03]} 20.
Bb5 {[%clk 00:19:38]} {[%emt 00:02:15]} Rf8 {[%clk 00:22:58]} {[%emt 00:00:56]}
21. Nh2 {[%clk 00:18:40]} {[%emt 00:01:06]} Nf4 {[%clk 00:20:19]} {[%emt
00:02:49]} 22. Ng4 {[%clk 00:18:10]} {[%emt 00:00:40]} Qh4 {[%clk 00:20:14]}
{[%emt 00:00:16]} 23. Bxf4 {[%clk 00:18:04]} {[%emt 00:00:16]} Rxf4 {[%clk
00:19:28]} {[%emt 00:00:56]} 24. Qe2 {[%clk 00:17:06]} {[%emt 00:01:08]} Re4
{[%clk 00:15:09]} {[%emt 00:04:29]} 25. Qd1 {[%clk 00:14:28]} {[%emt 00:02:48]}
h5 {[%clk 00:13:45]} {[%emt 00:01:34]} 26. Nh2 {[%clk 00:13:47]} {[%emt
00:00:51]} g5 {[%clk 00:12:34]} {[%emt 00:01:21]} 27. Bd3 {[%clk 00:13:05]}
{[%emt 00:00:51]} Rf4 {[%clk 00:10:39]} {[%emt 00:02:06]} 28. Nf3 {[%clk
00:12:02]} {[%emt 00:01:13]} Rxf3 {[%clk 00:10:33]} {[%emt 00:00:15]} 29. Qxf3
{[%clk 00:12:04]} {[%emt 00:00:08]} Rf8 {[%clk 00:10:37]} {[%emt 00:00:06]} 30.
Qe3 {[%clk 00:11:50]} {[%emt 00:00:23]} Rf6 {[%clk 00:10:12]} {[%emt 00:00:38]}
31. a7 {[%clk 00:11:35]} {[%emt 00:00:24]} g4 {[%clk 00:08:15]} {[%emt
00:02:07]} 32. a8=Q+ {[%clk 00:01:38]} {[%emt 00:00:06]} Kg7 {[%clk 00:08:15]}
{[%emt 00:00:11]} 33. g3 {[%clk 00:10:08]} {[%emt 00:01:39]} 1-0

[Event "Kwalificatie NJK A Groningen"]
[Site "Hoogkerk, Netherlands"]
[Date "2023.02.18"]
[Round "4.1"]
[White "Moskalets, Sofia"]
[Black "Slagboom, Leandro"]
[Result "1-0"]
[TimeControl "55 min. + 10 sec./zet"]
[WhiteElo "1675"]
[BlackElo "2201"]

1. e4 {[%clk 00:55:18]} e5 {[%clk 00:54:55]} {[%emt 00:00:25]} 2. Nc3 {[%clk
00:55:21]} {[%emt 00:00:08]} Nc6 {[%clk 00:54:58]} {[%emt 00:00:07]} 3. g3
{[%clk 00:55:25]} {[%emt 00:00:06]} Bc5 {[%clk 00:54:50]} {[%emt 00:00:18]} 4.
Bg2 {[%clk 00:55:20]} {[%emt 00:00:15]} a5 {[%clk 00:54:47]} {[%emt 00:00:13]}
5. d3 {[%clk 00:53:44]} {[%emt 00:01:47]} d6 {[%clk 00:54:42]} {[%emt
00:00:14]} 6. Nge2 {[%clk 00:52:26]} {[%emt 00:01:28]} Nge7 {[%clk 00:54:26]}
{[%emt 00:00:27]} 7. O-O {[%clk 00:49:52]} {[%emt 00:02:43]} O-O {[%clk
00:54:17]} {[%emt 00:00:19]} 8. Kh1 {[%clk 00:48:40]} {[%emt 00:01:22]} Be6
{[%clk 00:51:48]} {[%emt 00:02:39]} 9. f4 {[%clk 00:40:23]} {[%emt 00:08:27]}
f5 {[%clk 00:50:51]} {[%emt 00:01:07]} 10. Nd5 {[%clk 00:37:05]} {[%emt
00:03:29]} Bxd5 {[%clk 00:44:49]} {[%emt 00:06:12]} 11. exd5 {[%clk 00:36:33]}
{[%emt 00:00:41]} Nd4 {[%clk 00:44:38]} {[%emt 00:00:21]} 12. c3 {[%clk
00:34:03]} {[%emt 00:02:41]} Nxe2 {[%clk 00:44:40]} {[%emt 00:00:07]} 13. Qxe2
{[%clk 00:34:09]} {[%emt 00:00:04]} Ng6 {[%clk 00:43:16]} {[%emt 00:01:33]} 14.
fxe5 {[%clk 00:29:49]} {[%emt 00:04:31]} dxe5 {[%clk 00:43:12]} {[%emt
00:00:14]} 15. Bd2 {[%clk 00:27:33]} {[%emt 00:02:25]} Qd7 {[%clk 00:40:39]}
{[%emt 00:02:43]} 16. Rae1 {[%clk 00:25:12]} {[%emt 00:02:32]} Qa4 {[%clk
00:35:52]} {[%emt 00:04:57]} 17. a3 {[%clk 00:20:02]} {[%emt 00:05:19]} Qb3
{[%clk 00:34:32]} {[%emt 00:01:30]} 18. Bg5 {[%clk 00:17:09]} {[%emt 00:03:03]}
h6 {[%clk 00:32:07]} {[%emt 00:02:35]} 19. Bc1 {[%clk 00:13:28]} {[%emt
00:03:52]} Ra6 {[%clk 00:31:06]} {[%emt 00:01:11]} 20. Qd1 {[%clk 00:08:47]}
{[%emt 00:04:50]} Qxd1 {[%clk 00:30:15]} {[%emt 00:01:02]} 21. Rxd1 {[%clk
00:08:53]} {[%emt 00:00:04]} a4 {[%clk 00:29:19]} {[%emt 00:01:07]} 22. d4
{[%clk 00:07:08]} {[%emt 00:01:55]} exd4 {[%clk 00:27:59]} {[%emt 00:01:29]} 23.
cxd4 {[%clk 00:07:14]} {[%emt 00:00:05]} Bd6 {[%clk 00:26:10]} {[%emt
00:01:58]} 24. Bd2 {[%clk 00:06:50]} {[%emt 00:00:34]} Rb6 {[%clk 00:25:19]}
{[%emt 00:01:01]} 25. Bc3 {[%clk 00:06:49]} {[%emt 00:00:11]} Ne7 {[%clk
00:24:34]} {[%emt 00:00:54]} 26. Rfe1 {[%clk 00:05:40]} {[%emt 00:01:19]} Kf7
{[%clk 00:21:28]} {[%emt 00:03:16]} 27. Rd2 {[%clk 00:04:20]} {[%emt 00:01:30]}
Ke8 {[%clk 00:18:51]} {[%emt 00:02:48]} 28. Bf1 {[%clk 00:03:41]} {[%emt
00:00:49]} f4 {[%clk 00:11:46]} {[%emt 00:07:15]} 29. gxf4 {[%clk 00:02:37]}
{[%emt 00:01:14]} Bxf4 {[%clk 00:11:18]} {[%emt 00:00:37]} 30. Rde2 {[%clk
00:02:27]} {[%emt 00:00:20]} Rf7 {[%clk 00:09:47]} {[%emt 00:01:41]} 31. Re6
{[%clk 00:02:19]} {[%emt 00:00:19]} Bd6 {[%clk 00:06:59]} {[%emt 00:02:58]} 32.
Bc4 {[%clk 00:02:04]} {[%emt 00:00:26]} Rf2 {[%clk 00:03:28]} {[%emt 00:03:40]}
33. R6e2 {[%clk 00:01:56]} {[%emt 00:00:18]} Rxe2 {[%clk 00:02:36]} {[%emt
00:01:01]} 34. Rxe2 {[%clk 00:01:47]} {[%emt 00:00:20]} Bf4 {[%clk 00:00:37]}
{[%emt 00:02:08]} 35. Bb4 {[%clk 00:01:27]} {[%emt 00:00:30]} Bg5 {[%clk
00:00:13]} {[%emt 00:00:34]} 36. Ba5 {[%clk 00:01:20]} {[%emt 00:00:17]} Rf6
{[%clk 00:00:15]} {[%emt 00:00:08]} 37. Bxc7 {[%clk 00:01:13]} {[%emt
00:00:18]} Kd7 {[%clk 00:00:23]} {[%emt 00:00:01]} 38. Be5 {[%clk 00:00:53]}
{[%emt 00:00:31]} Rf5 {[%clk 00:00:14]} {[%emt 00:00:19]} 39. Bb5+ {[%clk
00:00:44]} {[%emt 00:00:19]} Kd8 {[%clk 00:00:23]} 40. d6 {[%clk 00:00:37]}
{[%emt 00:00:16]} Ng6 {[%clk 00:00:33]} {[%emt 00:00:01]} 41. Bf6+ {[%clk
00:00:41]} {[%emt 00:00:06]} 1-0

[Event "Kwalificatie NJK A Groningen"]
[Site "Hoogkerk, Netherlands"]
[Date "2023.02.18"]
[Round "4.2"]
[White "Van Kuijk, Vadim"]
[Black "Knol, DaniÃ«l"]
[Result "1/2-1/2"]
[TimeControl "55 min. + 10 sec./zet"]
[WhiteElo "2023"]
[BlackElo "1807"]

1. e4 {[%clk 00:55:15]} {[%emt 00:00:05]} c5 {[%clk 00:55:19]} {[%emt
00:00:01]} 2. Nf3 {[%clk 00:55:20]} {[%emt 00:00:05]} e6 {[%clk 00:55:27]}
{[%emt 00:00:02]} 3. d4 {[%clk 00:55:26]} {[%emt 00:00:04]} cxd4 {[%clk
00:55:33]} {[%emt 00:00:05]} 4. Nxd4 {[%clk 00:55:32]} {[%emt 00:00:03]} Nf6
{[%clk 00:55:35]} {[%emt 00:00:08]} 5. Nc3 {[%clk 00:55:38]} {[%emt 00:00:04]}
Nc6 {[%clk 00:55:41]} {[%emt 00:00:04]} 6. Ndb5 {[%clk 00:55:44]} {[%emt
00:00:04]} Bc5 {[%clk 00:54:40]} {[%emt 00:01:10]} 7. Bf4 {[%clk 00:55:43]}
{[%emt 00:00:11]} O-O {[%clk 00:54:42]} {[%emt 00:00:09]} 8. Bc7 {[%clk
00:55:36]} {[%emt 00:00:16]} Qe7 {[%clk 00:54:49]} {[%emt 00:00:03]} 9. Bd6
{[%clk 00:55:40]} {[%emt 00:00:07]} Bxd6 {[%clk 00:54:02]} {[%emt 00:00:58]} 10.
Qxd6 {[%clk 00:55:43]} {[%emt 00:00:06]} Ne8 {[%clk 00:54:05]} {[%emt
00:00:08]} 11. Qxe7 {[%clk 00:55:47]} {[%emt 00:00:05]} Nxe7 {[%clk 00:54:13]}
{[%emt 00:00:02]} 12. O-O-O {[%clk 00:55:04]} {[%emt 00:00:52]} a6 {[%clk
00:54:18]} {[%emt 00:00:06]} 13. Nd6 {[%clk 00:46:52]} {[%emt 00:08:22]} Nxd6
{[%clk 00:52:44]} {[%emt 00:01:44]} 14. Rxd6 {[%clk 00:47:00]} {[%emt
00:00:02]} b5 {[%clk 00:50:24]} {[%emt 00:02:30]} 15. Be2 {[%clk 00:41:39]}
{[%emt 00:05:31]} f5 {[%clk 00:43:32]} {[%emt 00:07:02]} 16. Bf3 {[%clk
00:31:45]} {[%emt 00:10:04]} Ra7 {[%clk 00:41:52]} {[%emt 00:01:51]} 17. Rhd1
{[%clk 00:18:14]} {[%emt 00:13:40]} Rc7 {[%clk 00:38:48]} {[%emt 00:03:13]} 18.
a3 {[%clk 00:15:39]} {[%emt 00:02:46]} fxe4 {[%clk 00:38:26]} {[%emt 00:00:32]}
19. Nxe4 {[%clk 00:15:17]} {[%emt 00:00:32]} Nf5 {[%clk 00:38:15]} {[%emt
00:00:21]} 20. Rb6 {[%clk 00:11:52]} {[%emt 00:03:35]} Nh4 {[%clk 00:32:12]}
{[%emt 00:06:12]} 21. Nd6 {[%clk 00:09:29]} {[%emt 00:02:33]} Nxf3 {[%clk
00:32:13]} {[%emt 00:00:10]} 22. gxf3 {[%clk 00:09:35]} {[%emt 00:00:04]} Rxf3
{[%clk 00:29:04]} {[%emt 00:03:20]} 23. Rb8 {[%clk 00:09:39]} {[%emt 00:00:06]}
Rf8 {[%clk 00:29:06]} {[%emt 00:00:07]} 24. Rxc8 {[%clk 00:09:28]} {[%emt
00:00:20]} Rfxc8 {[%clk 00:29:06]} {[%emt 00:00:11]} 25. Nxc8 {[%clk 00:09:34]}
{[%emt 00:00:04]} Rxc8 {[%clk 00:29:11]} {[%emt 00:00:05]} 26. Rxd7 {[%clk
00:09:25]} {[%emt 00:00:19]} Rf8 {[%clk 00:27:05]} {[%emt 00:02:16]} 27. Rd2
{[%clk 00:03:23]} {[%emt 00:06:11]} Kf7 {[%clk 00:26:37]} {[%emt 00:00:39]} 28.
Kd1 {[%clk 00:01:23]} {[%emt 00:02:10]} Ke7 {[%clk 00:25:20]} {[%emt 00:01:27]}
29. Ke2 {[%clk 00:01:26]} {[%emt 00:00:08]} e5 {[%clk 00:25:18]} {[%emt
00:00:12]} 30. b3 {[%clk 00:00:41]} {[%emt 00:00:55]} Rc8 {[%clk 00:25:02]}
{[%emt 00:00:25]} 31. Ke3 {[%clk 00:00:38]} {[%emt 00:00:13]} Ke6 {[%clk
00:24:09]} {[%emt 00:01:03]} 32. Ke4 {[%emt 00:00:22]} 1/2-1/2

[Event "Kwalificatie NJK A Groningen"]
[Site "Hoogkerk, Netherlands"]
[Date "2023.02.18"]
[Round "4.3"]
[White "Wierenga, JaÃ«l"]
[Black "Goudriaan, Rafael"]
[Result "1-0"]
[TimeControl "55 min. + 10 sec./zet"]
[WhiteElo "1879"]
[BlackElo "1882"]

1. d4 {[%clk 00:55:18]} Nf6 {[%clk 00:55:02]} {[%emt 00:00:19]} 2. c4 {[%clk
00:55:23]} {[%emt 00:00:06]} g6 {[%clk 00:54:58]} {[%emt 00:00:13]} 3. Nc3
{[%clk 00:55:28]} {[%emt 00:00:05]} Bg7 {[%clk 00:55:05]} {[%emt 00:00:03]} 4.
e4 {[%clk 00:55:34]} {[%emt 00:00:04]} d6 {[%clk 00:55:12]} {[%emt 00:00:03]} 5.
f3 {[%clk 00:55:40]} {[%emt 00:00:04]} O-O {[%clk 00:55:01]} {[%emt 00:00:21]}
6. Be3 {[%clk 00:55:47]} {[%emt 00:00:03]} e5 {[%clk 00:54:56]} {[%emt
00:00:14]} 7. Nge2 {[%clk 00:55:49]} {[%emt 00:00:08]} c6 {[%clk 00:53:40]}
{[%emt 00:01:27]} 8. Qd2 {[%clk 00:55:43]} {[%emt 00:00:16]} Qc7 {[%clk
00:53:30]} {[%emt 00:00:19]} 9. g4 {[%clk 00:47:46]} {[%emt 00:08:08]} a6
{[%clk 00:47:35]} {[%emt 00:06:05]} 10. Ng3 {[%clk 00:46:52]} {[%emt 00:01:04]}
b5 {[%clk 00:46:53]} {[%emt 00:00:52]} 11. Be2 {[%clk 00:37:35]} {[%emt
00:09:26]} Nbd7 {[%clk 00:42:55]} {[%emt 00:04:08]} 12. d5 {[%clk 00:28:50]}
{[%emt 00:08:57]} cxd5 {[%clk 00:42:24]} {[%emt 00:00:40]} 13. Nxd5 {[%clk
00:28:07]} {[%emt 00:00:53]} Nxd5 {[%clk 00:42:26]} {[%emt 00:00:06]} 14. cxd5
{[%clk 00:27:38]} {[%emt 00:00:41]} Qd8 {[%clk 00:41:30]} {[%emt 00:01:05]} 15.
h4 {[%clk 00:26:34]} {[%emt 00:01:15]} Nb6 {[%clk 00:37:03]} {[%emt 00:04:37]}
16. Rc1 {[%clk 00:25:38]} {[%emt 00:01:07]} f5 {[%clk 00:34:53]} {[%emt
00:02:20]} 17. gxf5 {[%clk 00:25:14]} {[%emt 00:00:34]} gxf5 {[%clk 00:34:35]}
{[%emt 00:00:27]} 18. Bg5 {[%clk 00:19:46]} {[%emt 00:05:38]} Bf6 {[%clk
00:32:02]} {[%emt 00:02:43]} 19. Nh5 {[%clk 00:15:30]} {[%emt 00:04:25]} Bxg5
{[%clk 00:31:10]} {[%emt 00:01:03]} 20. hxg5 {[%clk 00:15:25]} {[%emt
00:00:15]} f4 {[%clk 00:29:31]} {[%emt 00:01:50]} 21. Nf6+ {[%clk 00:14:19]}
{[%emt 00:01:15]} Rxf6 {[%clk 00:29:35]} {[%emt 00:00:07]} 22. gxf6 {[%clk
00:14:27]} {[%emt 00:00:01]} Qxf6 {[%clk 00:29:33]} {[%emt 00:00:11]} 23. Kf2
{[%clk 00:14:26]} {[%emt 00:00:11]} Bd7 {[%clk 00:29:22]} {[%emt 00:00:21]} 24.
Rc7 {[%clk 00:12:35]} {[%emt 00:02:01]} Rc8 {[%clk 00:28:51]} {[%emt 00:00:41]}
25. Qc1 {[%clk 00:11:36]} {[%emt 00:01:09]} Qd8 {[%clk 00:27:00]} {[%emt
00:02:01]} 26. Qg1+ {[%clk 00:09:42]} {[%emt 00:02:05]} Kh8 {[%clk 00:27:09]}
27. Qh2 {[%clk 00:09:02]} {[%emt 00:00:51]} Qe7 {[%clk 00:27:04]} {[%emt
00:00:15]} 28. Rxc8+ {[%clk 00:08:43]} {[%emt 00:00:29]} Nxc8 {[%clk 00:26:54]}
{[%emt 00:00:19]} 29. Bf1 {[%clk 00:07:26]} {[%emt 00:01:28]} Be8 {[%clk
00:26:46]} {[%emt 00:00:18]} 30. Qh6 {[%clk 00:05:34]} {[%emt 00:02:01]} Qg7
{[%clk 00:21:52]} {[%emt 00:05:05]} 31. Qxg7+ {[%clk 00:05:05]} {[%emt
00:00:39]} Kxg7 {[%clk 00:22:01]} {[%emt 00:00:01]} 32. Bh3 {[%clk 00:05:09]}
{[%emt 00:00:07]} Nb6 {[%clk 00:22:03]} {[%emt 00:00:07]} 33. Bf5 {[%clk
00:04:42]} {[%emt 00:00:37]} h6 {[%clk 00:21:04]} {[%emt 00:01:09]} 34. Rg1+
{[%clk 00:04:30]} {[%emt 00:00:22]} Kf8 {[%clk 00:20:42]} {[%emt 00:00:32]} 35.
b3 {[%clk 00:03:54]} {[%emt 00:00:47]} Nd7 {[%clk 00:19:40]} {[%emt 00:01:10]}
36. Bxd7 {[%clk 00:04:01]} {[%emt 00:00:04]} Bxd7 {[%clk 00:19:44]} {[%emt
00:00:06]} 37. Rg6 {[%clk 00:04:08]} {[%emt 00:00:03]} Ke7 {[%clk 00:19:50]}
{[%emt 00:00:04]} 38. Rxh6 {[%clk 00:04:17]} {[%emt 00:00:01]} Bc8 {[%clk
00:19:32]} {[%emt 00:00:28]} 39. Ke2 {[%clk 00:04:22]} {[%emt 00:00:05]} Kd7
{[%clk 00:19:35]} {[%emt 00:00:06]} 40. Kd2 {[%clk 00:04:30]} {[%emt 00:00:03]}
Kc7 {[%clk 00:19:33]} {[%emt 00:00:11]} 41. Kc3 {[%clk 00:04:39]} {[%emt
00:00:02]} a5 {[%clk 00:19:24]} {[%emt 00:00:19]} 42. Rh7+ {[%clk 00:04:27]}
{[%emt 00:00:22]} Bd7 {[%clk 00:19:26]} {[%emt 00:00:08]} 43. a4 {[%clk
00:04:16]} {[%emt 00:00:21]} bxa4 {[%clk 00:19:00]} {[%emt 00:00:37]} 44. bxa4
{[%clk 00:04:24]} {[%emt 00:00:02]} Kc8 {[%clk 00:18:59]} {[%emt 00:00:08]} 45.
Rxd7 {[%clk 00:02:44]} {[%emt 00:01:52]} 1-0